bitfinex-derivatives/quotes_BTCF0:USTF0_20251206
["timestamp","ask_amount","ask_price","bid_price","bid_amount"]
[1764989543294,0.07648,89396.0,89395.0,0.02973]
[1764989544282,0.05983,89392.0,89391.0,0.0409147]
[1764989544488,0.05983,89389.0,89388.0,0.11842847]
[1764989547103,0.05983,89389.0,89388.0,0.05836]
[1764989549293,0.05983,89389.0,89388.0,0.11842847]
[1764989550900,0.41983,89389.0,89388.0,0.06006847]
[1764989551106,0.41983,89389.0,89383.0,0.09907407]
[1764989551107,0.0571,89384.0,89383.0,0.09907407]
[1764989551408,0.4371,89384.0,89383.0,0.0390056]
[1764989551905,0.0571,89383.0,89382.0,0.00016785]
[1764989552098,0.4471,89383.0,89382.0,0.00016785]
[1764989552298,0.47071556,89383.0,89382.0,0.00016785]
[1764989555704,0.0571,89371.0,89370.0,0.0390073]
[1764989556105,0.0571,89371.0,89370.0,0.0679873]
[1764989557606,0.00016785,89379.0,89378.0,0.0679864]
[1764989557607,0.05726785,89379.0,89378.0,0.0679864]
[1764989557807,0.05726785,89379.0,89378.0,0.07040642]
[1764989559411,0.00016785,89379.0,89378.0,0.07040642]
[1764989559615,0.05726785,89379.0,89378.0,0.07040642]
[1764989579235,0.08088979,89379.0,89378.0,0.07040642]
[1764989587135,0.05726785,89379.0,89378.0,0.07040642]
[1764989591825,0.05726785,89379.0,89378.0,0.05922002]
[1764989592025,0.09169896,89379.0,89378.0,0.05922002]
[1764989592828,0.05624,89371.0,89370.0,0.13987434]
[1764989593035,0.05624,89369.0,89368.0,0.0405776]
[1764989593433,0.05624,89369.0,89368.0,0.0705076]
[1764989594442,0.05624,89369.0,89368.0,0.13084651]
[1764989596342,0.05624,89369.0,89368.0,0.0705076]
[1764989597338,0.05624,89369.0,89368.0,0.13084651]
[1764989598436,0.05624,89369.0,89368.0,0.05932]
[1764989600546,0.01668,89373.0,89367.0,0.0111877]
[1764989600547,0.05640785,89379.0,89378.0,0.05932]
[1764989600731,0.25000379,89379.0,89378.0,0.05932]
[1764989601243,0.48000379,89379.0,89378.0,0.05932]
[1764989601949,0.11000379,89379.0,89378.0,0.05932]
[1764989602241,0.08640785,89379.0,89378.0,0.05932]
[1764989607147,0.40640785,89379.0,89378.0,0.05932]
[1764989611753,0.15640785,89379.0,89378.0,0.05932]
[1764989613060,0.05640785,89379.0,89378.0,0.05932]
[1764989618750,0.05640785,89379.0,89378.0,0.11965891]
[1764989622759,0.05640785,89379.0,89378.0,0.05932]
[1764989623456,0.00016785,89379.0,89378.0,0.05932]
[1764989624158,0.02946785,89379.0,89378.0,0.05932]
[1764989624661,0.05833785,89379.0,89378.0,0.05932]
[1764989625662,0.00016785,89379.0,89378.0,0.05932]
[1764989625861,0.02946785,89379.0,89378.0,0.05932]
[1764989626165,0.05833785,89379.0,89378.0,0.05932]
[1764989627454,0.00016785,89379.0,89378.0,0.05932]
[1764989628352,0.05833785,89379.0,89378.0,0.05932]
[1764989630466,0.05916785,89379.0,89378.0,0.05932]
[1764989630764,0.00016785,89379.0,89378.0,0.05932]
[1764989631464,0.00016785,89379.0,89378.0,0.40932]
[1764989634667,0.00016785,89379.0,89378.0,0.46965766]
[1764989636472,0.00016785,89379.0,89378.0,0.40932]
[1764989647976,0.00016785,89379.0,89378.0,0.48987434]
[1764989648478,0.00016785,89379.0,89378.0,0.40932]
[1764989649175,0.0111831,89405.0,89404.0,0.05878]
[1764989649376,0.2002631,89405.0,89404.0,0.05878]
[1764989649677,0.44389377,89405.0,89404.0,0.05878]
[1764989650773,0.44389377,89405.0,89400.0,0.0111835]
[1764989650774,0.05908,89401.0,89400.0,0.0404335]
[1764989650976,0.08271067,89401.0,89400.0,0.0404335]
[1764989651170,0.05908,89401.0,89400.0,0.0404335]
[1764989651378,0.05908,89401.0,89400.0,0.0699635]
[1764989651566,0.05908,89401.0,89400.0,0.0404335]
[1764989651968,0.05908,89401.0,89400.0,0.0699635]
[1764989657769,0.05909644,89406.0,89405.0,0.011183]
[1764989657978,0.22266039,89406.0,89405.0,0.07238302]
[1764989659486,0.22266039,89406.0,89405.0,0.08331348]
[1764989659886,0.22266039,89406.0,89405.0,0.07238302]
[1764989661391,0.08266039,89406.0,89405.0,0.07238302]
[1764989665095,0.05908,89397.0,89396.0,0.07013195]
[1764989665286,0.05908,89397.0,89396.0,0.08139026]
[1764989665889,0.05908,89397.0,89396.0,0.09936026]
[1764989666496,0.05909644,89406.0,89405.0,0.069963]
[1764989666695,0.11266342,89406.0,89405.0,0.069963]
[1764989667293,0.08266342,89406.0,89405.0,0.069963]
[1764989685502,0.08270486,89406.0,89405.0,0.069963]
[1764989692623,0.35270486,89406.0,89405.0,0.069963]
[1764989692921,0.36126486,89406.0,89405.0,0.069963]
[1764989695818,0.35270486,89406.0,89405.0,0.069963]
[1764989697314,0.36972486,89406.0,89405.0,0.011183]
[1764989697514,0.36972486,89406.0,89405.0,0.039013]
[1764989697822,0.36972486,89406.0,89405.0,0.066273]
[1764989698524,0.09270486,89406.0,89405.0,0.066273]
[1764989698718,0.08270486,89406.0,89405.0,0.066273]
[1764989705721,0.50123486,89406.0,89405.0,0.039013]
[1764989706230,0.50123486,89406.0,89405.0,0.067523]
[1764989707229,0.0755,89400.0,89399.0,0.06029191]
[1764989707531,0.0755,89397.0,89396.0,0.00016785]
[1764989707732,0.52910842,89397.0,89396.0,0.00016785]
[1764989709429,0.07459,89388.0,89386.0,0.06029191]
[1764989709731,0.05851,89382.0,89381.0,0.057]
[1764989710717,0.05851,89382.0,89374.0,0.11729191]
[1764989710718,0.05851,89375.0,89374.0,0.11729191]
[1764989711226,0.05851,89375.0,89374.0,0.057]
[1764989721128,0.05851,89375.0,89374.0,0.467]
[1764989722741,0.05851,89375.0,89374.0,0.227]
[1764989731359,0.05851,89375.0,89374.0,0.26709404]
[1764989733258,0.05851,89375.0,89374.0,0.227]
[1764989736261,0.05851,89375.0,89374.0,0.28729191]
[1764989737347,0.05851,89375.0,89374.0,0.227]
[1764989750576,0.05851,89375.0,89374.0,0.07439]
[1764989757281,0.08224699,89375.0,89374.0,0.07439]
[1764989763283,0.0857669,89374.0,89373.0,0.00016785]
[1764989763482,0.068838,89365.0,89364.0,0.05612]
[1764989763682,0.24257499,89365.0,89364.0,0.05612]
[1764989764383,0.23138699,89365.0,89364.0,0.05612]
[1764989766886,0.48138699,89365.0,89364.0,0.05612]
[1764989767087,0.48138699,89365.0,89364.0,0.02703]
[1764989767289,0.45765,89365.0,89364.0,0.08731992]
[1764989767487,0.45765,89365.0,89364.0,0.11640992]
[1764989768179,0.45765,89365.0,89364.0,0.02703]
[1764989768685,0.07321,89361.0,89360.0,0.08731992]
[1764989768888,0.07321,89361.0,89360.0,0.02703]
[1764989769189,0.068839,89357.0,89356.0,0.00016785]
[1764989769591,0.468839,89357.0,89356.0,0.00016785]
[1764989770384,0.468839,89357.0,89356.0,0.02719785]
[1764989772180,0.468839,89357.0,89356.0,0.00016785]
[1764989772595,0.468839,89357.0,89356.0,0.02719785]
[1764989774290,0.468839,89357.0,89356.0,0.05628785]
[1764989778685,0.468839,89357.0,89356.0,0.02719785]
[1764989780194,0.468839,89357.0,89356.0,0.00016785]
[1764989780892,0.468839,89357.0,89346.0,0.11640992]
[1764989780893,0.05765,89347.0,89346.0,0.11640992]
[1764989781092,0.05765,89347.0,89346.0,0.05612]
[1764989782294,0.05765,89339.0,89338.0,0.06747925]
[1764989782494,0.05765,89339.0,89338.0,0.07747925]
[1764989782702,0.05765,89339.0,89338.0,0.08882746]
[1764989782898,0.06900815,89347.0,89346.0,0.05612]
[1764989783200,0.06900815,89347.0,89346.0,0.05854002]
[1764989785500,0.06900815,89347.0,89346.0,0.05612]
[1764989786093,0.46900815,89347.0,89346.0,0.02703]
[1764989787000,0.46900815,89347.0,89346.0,0.05612]
[1764989793418,0.09900815,89347.0,89346.0,0.07297]
[1764989793605,0.06900815,89347.0,89346.0,0.07297]
[1764989794109,0.06900815,89347.0,89346.0,0.05612]
[1764989800507,0.03921815,89347.0,89346.0,0.05612]
[1764989800710,0.00016785,89347.0,89346.0,0.45297]
[1764989803409,0.00016785,89347.0,89346.0,0.45397]
[1764989806914,0.02989785,89347.0,89346.0,0.45397]
[1764989807915,0.00016785,89347.0,89346.0,0.45397]
[1764989811909,0.00016785,89347.0,89346.0,0.14397]
[1764989812223,0.02989785,89347.0,89346.0,0.14397]
[1764989816420,0.00016785,89347.0,89346.0,0.14397]
[1764989816617,0.00016785,89347.0,89346.0,0.35397]
[1764989818514,0.068798,89365.0,89364.0,0.05697]
[1764989819420,0.05761,89365.0,89364.0,0.05697]
[1764989820117,0.05761,89365.0,89364.0,0.07378]
[1764989820426,0.06873495,89373.0,89372.0,0.05915]
[1764989820614,0.48256102,89373.0,89372.0,0.05915]
[1764989823016,0.48844102,89373.0,89372.0,0.05915]
[1764989824428,0.48843803,89373.0,89372.0,0.05915]
[1764989830216,0.48843803,89373.0,89372.0,0.03]
[1764989830421,0.99531803,89373.0,89372.0,0.03]
[1764989830820,0.99531803,89373.0,89372.0,0.05915]
[1764989832526,0.48843803,89373.0,89372.0,0.05915]
[1764989832736,1.00739803,89373.0,89372.0,0.05915]
[1764989833926,1.00739803,89373.0,89372.0,0.03]
[1764989835327,1.00739803,89373.0,89364.0,0.07050585]
[1764989835328,0.05738,89365.0,89364.0,0.07050585]
[1764989835537,0.05738,89365.0,89364.0,0.08731585]
[1764989845159,0.05738,89365.0,89364.0,0.14765202]
[1764989847155,0.05738,89365.0,89364.0,0.08731585]
[1764989847655,0.05754785,89373.0,89372.0,0.0841971]
[1764989847860,0.05754785,89373.0,89372.0,0.51701375]
[1764989847861,0.02406035,89373.0,89372.0,0.51701375]
[1764989848056,0.00016785,89373.0,89372.0,0.45661712]
[1764989854263,0.00016785,89373.0,89372.0,0.5169309]
[1764989854665,0.02762785,89373.0,89372.0,0.5169309]
[1764989856559,0.05492785,89373.0,89372.0,0.5169309]
[1764989857267,0.05492785,89373.0,89372.0,0.45661712]
[1764989857467,0.05492785,89373.0,89372.0,0.08661712]
[1764989857671,0.05492785,89373.0,89372.0,0.07275712]
[1764989866472,0.05492785,89373.0,89372.0,0.39275712]
[1764989867372,0.05492785,89373.0,89372.0,0.4530709]
[1764989868066,0.02762785,89373.0,89372.0,0.4530709]
[1764989868267,0.00016785,89373.0,89372.0,0.4530709]
[1764989868467,0.02762785,89373.0,89372.0,0.4530709]
[1764989869065,0.00016785,89373.0,89372.0,0.4530709]
[1764989872275,0.00016785,89373.0,89372.0,0.39275712]
[1764989877783,0.02939785,89373.0,89372.0,0.39275712]
[1764989878879,0.05782785,89373.0,89372.0,0.39275712]
[1764989879179,0.05782785,89373.0,89372.0,0.15275712]
[1764989879396,0.05782785,89373.0,89372.0,0.07275712]
[1764989885982,0.00016785,89373.0,89372.0,0.48275712]
[1764989887282,0.02961785,89373.0,89372.0,0.48275712]
[1764989887479,0.00016785,89373.0,89372.0,0.48275712]
[1764989887684,0.0745548,89391.0,89390.0,0.05813]
[1764989887877,0.48844435,89391.0,89390.0,0.05813]
[1764989894682,0.48189435,89391.0,89390.0,0.05813]
[1764989894889,0.47070955,89391.0,89390.0,0.05813]
[1764989895779,0.12070955,89391.0,89390.0,0.05813]
[1764989896377,0.08070955,89391.0,89390.0,0.05813]
[1764989896587,0.32070955,89391.0,89390.0,0.05813]
[1764989907290,0.29682,89391.0,89390.0,0.05813]
[1764989911691,0.29682,89391.0,89383.0,0.06037878]
[1764989911692,0.01653,89385.0,89383.0,0.06037878]
[1764989911887,0.07504,89382.0,89381.0,0.09863478]
[1764989912087,0.07504,89382.0,89381.0,0.011186]
[1764989912088,0.44504,89382.0,89381.0,0.011186]
[1764989915199,0.44504,89382.0,89381.0,0.07156478]
[1764989915998,0.44504,89382.0,89381.0,0.011186]
[1764989916194,0.44504,89382.0,89381.0,0.07156478]
[1764989917299,0.44504,89382.0,89381.0,0.011186]
[1764989920000,0.44504,89382.0,89381.0,0.038256]
[1764989925003,0.44504,89382.0,89381.0,0.011186]
[1764989935004,0.44504,89382.0,89381.0,0.040886]
[1764989938710,0.44504,89382.0,89381.0,0.067896]
[1764989942515,0.44504,89382.0,89381.0,0.011186]
[1764989944417,0.05622,89379.0,89378.0,0.06031856]
[1764989944610,0.41622,89379.0,89378.0,0.06031856]
[1764989947320,0.0726,89378.0,89377.0,0.0111864]
[1764989947620,0.51648609,89378.0,89377.0,0.0111864]
[1764989949516,0.51648609,89378.0,89377.0,0.0395964]
[1764989954728,0.51648609,89378.0,89377.0,0.0678564]
[1764989957422,0.05622,89378.0,89377.0,0.0678564]
[1764989957732,0.05622,89389.0,89388.0,0.0678551]
[1764989957933,0.02782,89389.0,89388.0,0.0768051]
[1764989958519,0.05622,89389.0,89388.0,0.0768051]
[1764989959127,0.05638785,89399.0,89398.0,0.0678539]
[1764989959327,0.13018434,89399.0,89398.0,0.0678539]
[1764989959523,0.10638785,89399.0,89398.0,0.0678539]
[1764989961024,0.05638785,89399.0,89398.0,0.0678539]
[1764989961335,0.00016785,89399.0,89398.0,0.0678539]
[1764989963441,0.00016785,89399.0,89398.0,0.1280629]
[1764989964339,0.00016785,89399.0,89398.0,0.0678539]
[1764989965342,0.00016785,89399.0,89398.0,0.1280229]
[1764989966443,0.00016785,89399.0,89398.0,0.0678539]
[1764989967146,0.02783644,89406.0,89405.0,0.067853]
[1764989967348,0.57098,89420.0,89419.0,0.0678512]
[1764989967648,0.83469656,89420.0,89419.0,0.0678512]
[1764989969744,0.31993656,89420.0,89419.0,0.0678512]
[1764989970048,0.29622,89420.0,89419.0,0.0678512]
[1764989971743,0.05622,89420.0,89419.0,0.0678512]
[1764989972140,0.00016775,89428.0,89427.0,0.0838402]
[1764989972345,0.00016775,89428.0,89427.0,0.5138402]
[1764989972538,0.05618,89439.0,89438.0,0.0671387]
[1764989972946,0.18158293,89460.0,89445.0,0.067138]
[1764989972947,0.0564595,89446.0,89445.0,0.067138]
[1764989974243,0.0002795,89446.0,89445.0,0.067138]
[1764989974955,0.0002795,89446.0,89445.0,0.487138]
[1764989980858,0.0564595,89446.0,89445.0,0.267138]
[1764989981060,0.0564595,89446.0,89445.0,0.487138]
[1764989982763,0.0564595,89446.0,89445.0,0.067138]
[1764989985162,0.0002795,89446.0,89445.0,0.067138]
[1764989986663,0.0564595,89446.0,89445.0,0.067138]
[1764989988265,0.4364595,89446.0,89445.0,0.02726]
[1764989988565,0.4364595,89446.0,89441.0,0.0111784]
[1764989988566,0.05618,89442.0,89441.0,0.0671384]
[1764989988768,0.05618,89442.0,89437.0,0.06730675]
[1764989988769,0.05618,89438.0,89437.0,0.06730675]
[1764989988963,0.05618,89438.0,89437.0,0.06972677]
[1764989998369,0.05752,89442.0,89441.0,0.0691085]
[1764989998557,0.05752,89442.0,89441.0,0.07152852]
[1764989998558,0.06752,89442.0,89441.0,0.07152852]
[1764990000758,0.05752,89442.0,89441.0,0.07152852]
[1764990000965,0.0550995,89446.0,89445.0,0.068258]
[1764990001171,0.07870462,89446.0,89445.0,0.07067802]
[1764990006262,0.0550995,89446.0,89445.0,0.07067802]
[1764990006859,0.0278295,89446.0,89445.0,0.07067802]
[1764990007063,0.0002795,89446.0,89445.0,0.07067802]
[1764990010467,0.0002795,89446.0,89445.0,0.26067802]
[1764990010675,0.0002795,89446.0,89445.0,0.50167802]
[1764990014175,0.0002795,89446.0,89445.0,0.56180503]
[1764990014474,0.0002795,89446.0,89445.0,0.50167802]
[1764990014972,0.0550995,89446.0,89445.0,0.17167802]
[1764990016272,0.0550995,89446.0,89445.0,0.17067802]
[1764990017484,0.0550995,89446.0,89439.0,0.08993707]
[1764990017485,0.3802795,89446.0,89439.0,0.08993707]
[1764990017682,0.05482,89440.0,89439.0,0.0682587]
[1764990018193,0.05482,89440.0,89437.0,0.06029482]
[1764990018194,0.0550995,89446.0,89445.0,0.068258]
[1764990018481,0.0550995,89446.0,89445.0,0.07067802]
[1764990018678,0.0002795,89446.0,89445.0,0.07067802]
[1764990018884,0.0278295,89446.0,89445.0,0.07067802]
[1764990019079,0.0550995,89446.0,89445.0,0.07067802]
[1764990023087,0.0002795,89446.0,89445.0,0.13080509]
[1764990023284,0.0002795,89446.0,89445.0,0.07067802]
[1764990023685,0.0278295,89446.0,89445.0,0.07067802]
[1764990024283,0.0002795,89446.0,89445.0,0.43067802]
[1764990031586,0.0576195,89446.0,89445.0,0.43067802]
[1764990031781,0.0576195,89446.0,89445.0,0.07067802]
[1764990031782,0.0584695,89446.0,89445.0,0.07067802]
[1764990036490,0.0286795,89446.0,89445.0,0.07067802]
[1764990036792,0.0002795,89446.0,89445.0,0.07067802]
[1764990037097,0.0286795,89446.0,89445.0,0.15118306]
[1764990037298,0.0002795,89446.0,89445.0,0.15118306]
[1764990037482,0.0002795,89446.0,89445.0,0.07067802]
[1764990039888,0.0286795,89446.0,89445.0,0.07067802]
[1764990040090,0.0002795,89446.0,89445.0,0.50067802]
[1764990047295,0.0002795,89446.0,89445.0,0.58118306]
[1764990048681,0.0002795,89446.0,89445.0,0.50067802]
[1764990056000,0.00011,89454.0,89445.0,0.47086802]
[1764990056205,0.05551,89474.0,89473.0,0.0685144]
[1764990056502,0.32915917,89474.0,89473.0,0.0685144]
[1764990058192,0.08837773,89489.0,89485.0,0.011173]
[1764990058397,0.34941985,89486.0,89485.0,0.068513]
[1764990058697,0.34941985,89486.0,89485.0,0.05734]
[1764990060999,0.05642,89485.0,89484.0,0.011173]
[1764990061199,0.50005048,89485.0,89484.0,0.011173]
[1764990061902,0.50005048,89485.0,89469.0,0.06018807]
[1764990061903,0.01568,89476.0,89469.0,0.06018807]
[1764990062102,0.05642,89469.0,89468.0,0.10015317]
[1764990062302,0.05642,89469.0,89468.0,0.0111751]
[1764990062303,0.47642,89469.0,89468.0,0.0111751]
[1764990066693,0.47642,89469.0,89468.0,0.0399651]
[1764990067098,0.05642,89469.0,89468.0,0.0698851]
[1764990067897,0.05642,89469.0,89468.0,0.0111751]
[1764990068109,0.05642,89466.0,89452.0,0.06018807]
[1764990068309,0.43003068,89466.0,89451.0,0.06018807]
[1764990068803,0.43003068,89466.0,89446.0,0.01122158]
[1764990068804,0.43003068,89466.0,89450.0,0.06018807]
[1764990069010,0.43003068,89466.0,89456.0,0.0111765]
[1764990071110,0.43003068,89466.0,89461.0,0.0111759]
[1764990071311,0.43003068,89466.0,89465.0,0.06129766]
[1764990071901,0.43003068,89466.0,89465.0,0.05887764]
[1764990072709,0.08003068,89466.0,89465.0,0.07529764]
[1764990072915,0.05642,89466.0,89465.0,0.07529764]
[1764990076115,0.05642,89466.0,89465.0,0.11535911]
[1764990076311,0.05642,89466.0,89465.0,0.07529764]
[1764990076814,0.02872,89466.0,89465.0,0.07529764]
[1764990077018,0.05642,89466.0,89465.0,0.07529764]
[1764990077317,0.05642,89466.0,89465.0,0.11536053]
[1764990077612,0.11642,89466.0,89465.0,0.11536053]
[1764990078317,0.11642,89466.0,89465.0,0.07529764]
[1764990079913,0.05642,89466.0,89465.0,0.07529764]
[1764990089424,0.05642,89466.0,89465.0,0.11533782]
[1764990089629,0.05642,89466.0,89465.0,0.07529764]
[1764990091432,0.05642,89466.0,89465.0,0.11533782]
[1764990093847,0.05642,89466.0,89465.0,0.07529764]
[1764990094444,0.05642,89466.0,89465.0,0.05887764]
[1764990096253,0.48642,89466.0,89465.0,0.02895764]
[1764990096453,0.48642,89466.0,89465.0,0.00016764]
[1764990098753,0.48642,89466.0,89465.0,0.02911764]
[1764990103958,0.48642,89466.0,89465.0,0.00016764]
[1764990104170,1.00474,89466.0,89465.0,0.00016764]
[1764990104660,0.05687,89459.0,89457.0,0.04007299]
[1764990104868,0.05687,89458.0,89457.0,0.04007299]
[1764990105072,0.48687,89458.0,89457.0,0.04007299]
[1764990105356,0.0680465,89457.0,89455.0,0.04007299]
[1764990105551,0.05687,89456.0,89455.0,0.04007299]
[1764990105748,0.44687,89456.0,89455.0,0.04007299]
[1764990106153,0.44687,89456.0,89452.0,0.011177]
[1764990106154,0.05687,89453.0,89452.0,0.011177]
[1764990106363,0.05687,89451.0,89450.0,0.02895]
[1764990106565,0.48687,89451.0,89450.0,0.02895]
[1764990108356,0.48687,89451.0,89450.0,0.05836]
[1764990113861,0.48687,89451.0,89447.0,0.01134534]
[1764990113862,0.07147,89448.0,89447.0,0.01134534]
[1764990114068,0.48147,89448.0,89447.0,0.00016764]
[1764990119481,0.48147,89448.0,89447.0,0.02889764]
[1764990121168,0.48147,89448.0,89447.0,0.05718764]
[1764990124971,0.46552,89448.0,89447.0,0.05718764]
[1764990127769,0.46552,89448.0,89447.0,0.02889764]
[1764990129274,0.46552,89448.0,89447.0,0.05801764]
[1764990130877,0.08552,89448.0,89447.0,0.05801764]
[1764990132472,0.05552,89448.0,89447.0,0.05801764]
[1764990132679,0.31464,89448.0,89447.0,0.05801764]
[1764990133575,0.57396,89448.0,89447.0,0.05801764]
[1764990134280,0.05552,89448.0,89447.0,0.05801764]
[1764990134681,0.28512,89448.0,89447.0,0.05801764]
[1764990137376,0.02811,89448.0,89447.0,0.05801764]
[1764990137584,0.16498477,89460.0,89447.0,0.05801764]
[1764990137585,0.22272477,89460.0,89459.0,0.05775]
[1764990137774,0.71828699,89460.0,89459.0,0.05775]
[1764990138377,0.51196699,89460.0,89459.0,0.05775]
[1764990138577,0.30196699,89460.0,89459.0,0.05775]
[1764990139076,0.27774,89460.0,89459.0,0.05775]
[1764990144678,0.00016729,89465.0,89464.0,0.0854356]
[1764990144876,0.00016729,89465.0,89464.0,0.08785562]
[1764990147093,0.05790729,89465.0,89464.0,0.08785562]
[1764990147989,0.00027937,89486.0,89485.0,0.068923]
[1764990147990,0.05801937,89486.0,89485.0,0.068923]
[1764990148193,0.46219395,89486.0,89485.0,0.068923]
[1764990149192,0.43801937,89486.0,89485.0,0.068923]
[1764990156909,0.22801937,89486.0,89485.0,0.068923]
[1764990158710,0.22801937,89486.0,89485.0,0.08005732]
[1764990159608,0.22801937,89486.0,89485.0,0.068923]
[1764990160008,0.19894937,89486.0,89485.0,0.068923]
[1764990160209,0.00027937,89486.0,89485.0,0.07987364]
[1764990160513,0.02792937,89486.0,89485.0,0.07987364]
[1764990160813,0.05769937,89486.0,89485.0,0.07987364]
[1764990161312,0.05769925,89526.0,89525.0,0.05652]
[1764990164615,0.00027925,89526.0,89525.0,0.05652]
[1764990167118,0.00027925,89526.0,89525.0,0.41652]
[1764990167812,1e-08,89526.0,89525.0,0.41652]
[1764990169013,1e-08,89526.0,89525.0,0.81652]
[1764990169817,1e-08,89526.0,89525.0,0.41652]
[1764990170017,1e-08,89526.0,89525.0,0.81652]
[1764990173715,1e-08,89526.0,89525.0,0.41652]
[1764990174222,1e-08,89526.0,89525.0,0.93496]
[1764990175013,1e-08,89526.0,89525.0,0.41652]
[1764990175220,1e-08,89526.0,89525.0,0.93496]
[1764990176016,1e-08,89526.0,89525.0,0.93492]
[1764990176816,1e-08,89526.0,89525.0,1.33492]
[1764990179523,0.00027913,89566.0,89565.0,0.086553]
[1764990179524,0.05665913,89566.0,89565.0,0.086553]
[1764990179717,0.05649149,89566.0,89565.0,0.069683]
[1764990179910,0.05649149,89566.0,89565.0,0.011163]
[1764990180114,0.07649149,89566.0,89565.0,0.011163]
[1764990180310,0.07649149,89566.0,89565.0,0.086783]
[1764990180311,0.05649149,89566.0,89565.0,0.086783]
[1764990183526,0.01582,89565.0,89557.0,0.01133151]
[1764990183725,0.01582,89565.0,89557.0,0.04334153]
[1764990183726,0.05662,89558.0,89557.0,0.04334153]
[1764990183916,0.05662,89558.0,89557.0,0.07286153]
[1764990187731,0.05662,89558.0,89557.0,0.35286153]
[1764990189922,0.02821149,89566.0,89565.0,0.07562]
[1764990190128,0.05673149,89566.0,89565.0,0.07804002]
[1764990191226,0.02404512,89566.0,89565.0,0.07804002]
[1764990191623,0.02404512,89566.0,89565.0,0.44804002]
[1764990193427,0.08066512,89566.0,89565.0,0.44804002]
[1764990193626,0.08066512,89566.0,89565.0,0.23804002]
[1764990194019,0.02404512,89566.0,89565.0,0.23804002]
[1764990194620,0.02404512,89566.0,89565.0,0.42804002]
[1764990195933,0.02404512,89566.0,89565.0,0.17804002]
[1764990196528,0.05214512,89566.0,89565.0,0.17804002]
[1764990197534,0.02404512,89566.0,89565.0,0.49804002]
[1764990197734,0.05214512,89566.0,89565.0,0.49804002]
[1764990197935,0.05214512,89566.0,89565.0,0.27804002]
[1764990198433,0.08066512,89566.0,89565.0,0.27804002]
[1764990199130,0.02404512,89566.0,89565.0,0.27804002]
[1764990199532,0.00011149,89566.0,89565.0,0.27804002]
[1764990199726,0.00011149,89566.0,89565.0,0.46804002]
[1764990200826,0.01582,89590.0,89589.0,0.01116]
[1764990200827,0.07244,89590.0,89589.0,0.01116]
[1764990201030,0.07244,89590.0,89575.0,0.01651]
[1764990201031,0.05662,89582.0,89581.0,0.05927751]
[1764990201231,0.08028913,89582.0,89581.0,0.05927751]
[1764990202430,0.08028913,89582.0,89581.0,0.02975751]
[1764990202738,0.08028913,89582.0,89581.0,0.00016751]
[1764990203134,0.09145003,89582.0,89581.0,0.00016751]
[1764990203931,0.48145003,89582.0,89581.0,0.00016751]
[1764990204935,0.05662,89563.0,89562.0,0.0407533]
[1764990205432,0.05662,89563.0,89562.0,0.0702733]
[1764990206329,0.05662,89556.0,89555.0,0.05911]
[1764990206635,0.05662,89556.0,89555.0,0.02959]
[1764990206832,0.08031314,89556.0,89555.0,0.02959]
[1764990207231,0.08031314,89556.0,89555.0,0.05911]
[1764990214247,0.05662,89556.0,89555.0,0.05911]
[1764990215343,0.05662,89556.0,89555.0,0.02959]
[1764990215943,0.05662,89556.0,89555.0,0.05894]
[1764990219443,0.0665842,89555.0,89554.0,0.00016751]
[1764990219747,0.05542,89555.0,89554.0,0.03022753]
[1764990220052,0.05542,89555.0,89554.0,0.05957753]
[1764990220756,0.05542,89555.0,89554.0,0.05715751]
[1764990221443,0.05542,89555.0,89554.0,0.02780751]
[1764990221645,0.05542,89555.0,89554.0,0.05715751]
[1764990227851,0.02742,89555.0,89554.0,0.05715751]
[1764990228057,0.0665827,89568.0,89567.0,0.05699]
[1764990228265,0.15023523,89568.0,89567.0,0.05699]
[1764990228561,0.09023523,89568.0,89567.0,0.05699]
[1764990228748,0.07907253,89568.0,89567.0,0.05699]
[1764990230655,0.02365253,89568.0,89567.0,0.05699]
[1764990230851,0.0111605,89586.0,89570.0,0.07431]
[1764990231162,0.0111605,89586.0,89570.0,0.07673002]
[1764990231751,0.02758708,89571.0,89570.0,0.07673002]
[1764990233960,0.02758708,89571.0,89570.0,0.47673002]
[1764990234864,0.00016708,89571.0,89570.0,0.47673002]
[1764990236166,0.02725708,89571.0,89570.0,0.17673002]
[1764990237362,0.02725708,89571.0,89565.0,0.02823]
[1764990237363,0.0111629,89566.0,89565.0,0.02823]
[1764990237561,0.05664,89561.0,89560.0,0.058]
[1764990237766,0.42664,89561.0,89560.0,0.058]
[1764990237964,0.45029416,89561.0,89560.0,0.058]
[1764990238264,0.42664,89561.0,89560.0,0.058]
[1764990240458,0.42664,89561.0,89560.0,0.0691636]
[1764990240459,0.14664,89561.0,89560.0,0.0691636]
[1764990241462,0.05664,89561.0,89560.0,0.0691636]
[1764990241668,0.00016708,89571.0,89550.0,0.18196093]
[1764990241669,0.00016708,89571.0,89570.0,0.0572]
[1764990241966,0.05702708,89571.0,89570.0,0.0572]
[1764990242167,0.08068055,89571.0,89570.0,0.0572]
[1764990243462,0.02382055,89571.0,89570.0,0.2472]
[1764990243667,0.00016708,89571.0,89570.0,0.2472]
[1764990247167,0.05686,89596.0,89595.0,0.02847]
[1764990247371,0.43050049,89596.0,89595.0,0.0572]
[1764990247861,0.43050049,89596.0,89595.0,0.02873]
[1764990248464,0.40150049,89596.0,89595.0,0.0572]
[1764990248670,0.42025049,89596.0,89595.0,0.0572]
[1764990250275,0.019029,89606.0,89605.0,0.0572]
[1764990250467,0.037779,89606.0,89605.0,0.0572]
[1764990252165,0.000279,89606.0,89605.0,0.0572]
[1764990252365,0.000279,89606.0,89605.0,0.4872]
[1764990253375,0.0375,89623.0,89622.0,0.07493]
[1764990253775,0.0486558,89623.0,89622.0,0.07493]
[1764990254475,0.0375,89623.0,89622.0,0.07493]
[1764990254872,0.0486558,89623.0,89622.0,0.07493]
[1764990255273,0.0111558,89623.0,89622.0,0.07493]
[1764990255475,0.0492149,89630.0,89629.0,0.0572]
[1764990255880,0.4292149,89630.0,89629.0,0.0572]
[1764990256373,0.18806,89630.0,89622.0,0.01773]
[1764990256574,0.0492158,89623.0,89622.0,0.07493]
[1764990259488,0.0492158,89623.0,89622.0,0.42493]
[1764990259489,0.0111558,89623.0,89622.0,0.42493]
[1764990259793,0.0492153,89627.0,89626.0,0.0572]
[1764990261379,0.03806,89627.0,89626.0,0.0572]
[1764990261583,0.03806,89627.0,89622.0,0.01773]
[1764990261584,0.0492148,89631.0,89630.0,0.0572]